[Event "23rd ETCC Women 2021"]
[Site "Catez"]
[Date "2021.11.13"]
[Round "2.18"]
[White "Mammadova, Gulnar"]
[Black "Agrest, Inna"]
[Result "1-0"]
[ECO "C45"]
[WhiteElo "2395"]
[BlackElo "2258"]
[Annotator "ChessBase"]
[PlyCount "173"]
[EventDate "2021.11.08"]
[EventType "team-tourn"]
[EventCountry "SLO"]
[SourceTitle "playchess.com"]
[Source "ChessBase"]
[SourceQuality "1"]
[WhiteTeam "Azerbaijan"]
[BlackTeam "Sweden"]
[WhiteTeamCountry "AZE"]
[BlackTeamCountry "SWE"]
[TimeControl "40/5400+30:1800+30"]

1. e4 {[%emt 0:00:03]} e5 {[%emt 0:00:06]} 2. Nf3 {[%emt 0:00:26]} Nc6 {
[%emt 0:00:08]} 3. d4 {[%emt 0:00:04]} exd4 {[%emt 0:00:12]} 4. Nxd4 {[%emt 0:
00:05]} Nf6 {[%emt 0:00:08]} 5. Nxc6 {[%emt 0:00:11]} bxc6 {[%emt 0:00:13]} 6.
e5 {[%emt 0:00:09]} Qe7 {[%emt 0:00:25]} 7. Qe2 {[%emt 0:00:08]} Nd5 {[%emt 0:
00:18]} 8. c4 {[%emt 0:00:14]} Ba6 {[%emt 0:01:10]} 9. b3 {[%emt 0:00:38]} Qh4
{[%emt 0:03:41]} 10. a3 {[%emt 0:01:22]} Nf4 {[%emt 0:02:14]} 11. Qe4 {[%emt 0:
01:23]} Ng6 {[%emt 0:00:56]} 12. Qxh4 {[%emt 0:00:05]} Nxh4 {[%emt 0:00:03]}
13. Kd1 {[%emt 0:08:28]} Be7 {[%emt 0:17:46]} 14. g3 {[%emt 0:08:03]} Ng6 {
[%emt 0:03:21]} 15. Bb2 {[%emt 0:00:59]} O-O {[%emt 0:01:39]} 16. f4 {[%emt 0:
02:09]} d6 {[%emt 0:07:47]} 17. Bg2 {[%emt 0:04:05]} Rab8 {[%emt 0:05:01]} 18.
Kc2 {[%emt 0:01:53]} Bc8 {[%emt 0:03:42]} 19. Nd2 {[%emt 0:04:57]} dxe5 {
[%emt 0:12:07]} 20. fxe5 {[%emt 0:03:00]} Bf5+ {[%emt 0:00:19]} 21. Be4 {
[%emt 0:01:40]} Bxe4+ {[%emt 0:00:29]} 22. Nxe4 {[%emt 0:00:02]} Rfe8 {[%emt 0:
00:25]} 23. Rhe1 {[%emt 0:03:04]} Rbd8 {[%emt 0:03:37]} 24. Nd2 {[%emt 0:06:50]
} Nf8 {[%emt 0:05:58]} 25. b4 {[%emt 0:05:19]} Ne6 {[%emt 0:02:34]} 26. c5 {
[%emt 0:04:11]} h5 {[%emt 0:08:44]} 27. Nb3 {[%emt 0:02:52]} Rd5 {[%emt 0:01:
05]} 28. Bc3 {[%emt 0:03:19]} h4 {[%emt 0:06:11]} 29. Na5 {[%emt 0:01:09]} Nd8
{[%emt 0:00:28]} 30. gxh4 {[%emt 0:02:24]} Bxh4 {[%emt 0:00:52]} 31. Re4 {
[%emt 0:00:18]} Bg5 {[%emt 0:00:55]} 32. h4 {[%emt 0:05:07]} f5 {[%emt 0:03:32]
} 33. Rc4 {[%emt 0:03:04]} Be3 {[%emt 0:00:15]} 34. Rf1 {[%emt 0:01:34]} f4 {
[%emt 0:02:20]} 35. Re4 {[%emt 0:01:09]} Re6 {[%emt 0:01:56]} 36. Nc4 {[%emt 0:
02:49]} Rg6 {[%emt 0:00:48]} 37. Nxe3 {[%emt 0:02:45]} fxe3 {[%emt 0:00:04]}
38. Rxe3 {[%emt 0:01:15]} Rg2+ {[%emt 0:01:32]} 39. Kb3 {[%emt 0:00:17]} Ne6 {
[%emt 0:00:13]} 40. h5 {[%emt 0:05:33]} Rh2 {[%emt 0:02:10]} 41. Rf5 {[%emt 0:
31:15]} a5 {[%emt 0:10:46]} 42. Rg3 {[%emt 0:00:00]} axb4 {[%emt 0:02:41]} 43.
axb4 {[%emt 0:00:00]} Kh7 {[%emt 0:03:50]} 44. Ka3 {[%emt 0:00:00]} Rd8 {
[%emt 0:04:49]} 45. Kb3 {[%emt 0:00:00]} Rd7 {[%emt 0:05:02]} 46. Rgf3 {
[%emt 0:00:00]} Kg8 {[%emt 0:02:04]} 47. Rg3 {[%emt 0:00:00]} Kh7 {[%emt 0:00:
13]} 48. Re3 {[%emt 0:00:00]} Kg8 {[%emt 0:02:10]} 49. Rf1 {[%emt 0:03:05]}
Rxh5 {[%emt 0:02:44]} 50. Ra1 {[%emt 0:00:08]} Rh6 {[%emt 0:01:55]} 51. Ra6 {
[%emt 0:00:49]} Kf7 {[%emt 0:00:22]} 52. Ka3 {[%emt 0:03:07]} Nd8 {[%emt 0:01:
35]} 53. Rg3 {[%emt 0:01:27]} Ke8 {[%emt 0:01:42]} 54. Ka4 {[%emt 0:01:38]} Nb7
{[%emt 0:01:36]} 55. Ra8+ {[%emt 0:01:46]} Nd8 {[%emt 0:00:21]} 56. Rc8 {
[%emt 0:01:24]} Kf7 {[%emt 0:00:28]} 57. Rxg7+ {[%emt 0:01:22]} Ke6 {[%emt 0:
00:10]} 58. Rg8 {[%emt 0:01:12]} Rd3 {[%emt 0:00:47]} 59. Rgxd8 {[%emt 0:02:57]
} Rxc3 {[%emt 0:00:06]} 60. Rxc7 {[%emt 0:00:08]} Kxe5 {[%emt 0:00:08]} 61.
Re7+ {[%emt 0:01:11]} Kf5 {[%emt 0:00:39]} 62. Rf8+ {[%emt 0:00:21]} Kg4 {
[%emt 0:00:28]} 63. Rg7+ {[%emt 0:00:44]} Kh3 {[%emt 0:00:27]} 64. Rff7 {
[%emt 0:00:35]} Re6 {[%emt 0:00:08]} 65. Rg8 {[%emt 0:01:00]} Rh6 {[%emt 0:00:
13]} 66. Rf1 {[%emt 0:01:48]} Kh2 {[%emt 0:00:19]} 67. Rf2+ {[%emt 0:00:10]}
Kh1 {[%emt 0:00:49]} 68. Rd8 {[%emt 0:00:54]} Kg1 {[%emt 0:01:26]} 69. Rb2 {
[%emt 0:00:06]} Rc1 {[%emt 0:00:07]} 70. Ka5 {[%emt 0:00:09]} Kf1 {[%emt 0:01:
22]} 71. Kb6 {[%emt 0:00:07]} Ke1 {[%emt 0:00:30]} 72. Rd6 {[%emt 0:00:14]} Rh8
{[%emt 0:00:19]} 73. Kxc6 {[%emt 0:00:11]} Ra1 {[%emt 0:00:24]} 74. Kb5 {
[%emt 0:00:12]} Rb8+ {[%emt 0:00:30]} 75. Rb6 {[%emt 0:00:04]} Rh8 {[%emt 0:00:
19]} 76. Rg6 {[%emt 0:00:35]} Kf1 {[%emt 0:00:17]} 77. c6 {[%emt 0:00:31]} Rb8+
{[%emt 0:00:23]} 78. Kc5 {[%emt 0:00:45]} Rc1+ {[%emt 0:00:15]} 79. Kd6 {
[%emt 0:00:09]} Rb5 {[%emt 0:01:09]} 80. Kd7 {[%emt 0:01:28]} Rd5+ {[%emt 0:01:
01]} 81. Rd6 {[%emt 0:00:59]} Rh5 {[%emt 0:00:06]} 82. b5 {[%emt 0:01:06]} Rh7+
{[%emt 0:00:16]} 83. Kc8 {[%emt 0:00:02]} Rh8+ {[%emt 0:00:12]} 84. Kb7 {
[%emt 0:00:13]} Ke1 {[%emt 0:01:20]} 85. c7 {[%emt 0:00:10]} Rh7 {[%emt 0:00:
05]} 86. b6 {[%emt 0:00:05]} Rg7 {[%emt 0:00:38]} 87. Rh6 {[%emt 0:00:12]} 1-0

[Event "23rd ETCC Women 2021"]
[Site "Catez"]
[Date "2021.11.13"]
[Round "2.19"]
[White "Andric, Jelena"]
[Black "Balajayeva, Khanim"]
[Result "0-1"]
[ECO "A13"]
[WhiteElo "2041"]
[BlackElo "2369"]
[Annotator "NA"]
[PlyCount "80"]
[EventDate "2021.11.08"]
[EventType "team-tourn"]
[EventCountry "SLO"]
[SourceTitle "playchess.com"]
[Source "ChessBase"]
[SourceQuality "1"]
[WhiteTeam "Sweden"]
[BlackTeam "Azerbaijan"]
[WhiteTeamCountry "SWE"]
[BlackTeamCountry "AZE"]
[TimeControl "40/5400+30:1800+30"]

1. Nf3 {[%emt 0:00:20]} Nf6 {[%emt 0:00:28]} 2. g3 {[%emt 0:01:22]} d5 {
[%emt 0:01:39]} 3. c4 {[%emt 0:01:35]} e6 {[%emt 0:00:32]} 4. Bg2 {[%emt 0:00:
58]} dxc4 {[%emt 0:00:12]} 5. O-O {[%emt 0:11:59]} Nbd7 {[%emt 0:01:51]} 6. Qa4
{[%emt 0:05:45]} c5 {[%emt 0:04:57]} 7. Na3 {[%emt 0:08:15]} a6 {[%emt 0:05:30]
} 8. Ne5 {[%emt 0:21:12]} Qc7 {[%emt 0:03:39]} 9. Naxc4 {[%emt 0:08:07]} Rb8 {
[%emt 0:03:56]} 10. Nxd7 {[%emt 0:03:45]} Nxd7 {[%emt 0:03:02]} 11. Qa5 {
[%emt 0:02:59]} b6 {[%emt 0:04:08]} 12. Qc3 {[%emt 0:00:28]} b5 {[%emt 0:04:01]
} 13. Ne3 {[%emt 0:01:10]} Bb7 {[%emt 0:10:29]} 14. Bxb7 {[%emt 0:02:51]} Qxb7
{[%emt 0:04:07]} 15. f4 {[%emt 0:03:15]} h5 {[%emt 0:06:44]} 16. Ng2 {[%emt 0:
02:04]} Be7 {[%emt 0:01:32]} 17. Qf3 {[%emt 0:06:26]} Qxf3 {[%emt 0:04:36]} 18.
Rxf3 {[%emt 0:00:16]} Bf6 {[%emt 0:00:28]} 19. Rb1 {[%emt 0:02:09]} Ke7 {
[%emt 0:05:01]} 20. b3 {[%emt 0:01:16]} Nb6 {[%emt 0:03:10]} 21. f5 {[%emt 0:
01:34]} exf5 {[%emt 0:06:46]} 22. Rxf5 {[%emt 0:00:21]} g6 {[%emt 0:01:14]} 23.
Rxf6 {[%emt 0:01:14]} Kxf6 {[%emt 0:00:05]} 24. Bb2+ {[%emt 0:00:04]} Ke7 {
[%emt 0:01:00]} 25. Bxh8 {[%emt 0:00:03]} Rxh8 {[%emt 0:00:02]} 26. d3 {
[%emt 0:03:58]} Re8 {[%emt 0:05:06]} 27. Kf2 {[%emt 0:00:34]} Kd6 {[%emt 0:00:
35]} 28. Nf4 {[%emt 0:03:51]} a5 {[%emt 0:01:38]} 29. e3 {[%emt 0:03:13]} Re7 {
[%emt 0:05:01]} 30. Rc1 {[%emt 0:01:01]} a4 {[%emt 0:02:42]} 31. bxa4 {[%emt 0:
00:24]} Nxa4 {[%emt 0:00:26]} 32. Ne2 {[%emt 0:01:53]} Nb2 {[%emt 0:02:03]} 33.
Rb1 {[%emt 0:01:31]} Nxd3+ {[%emt 0:00:16]} 34. Kf3 {[%emt 0:00:09]} Kc6 {
[%emt 0:00:29]} 35. Nc3 {[%emt 0:00:40]} b4 {[%emt 0:00:36]} 36. Ne2 {[%emt 0:
00:53]} Ne5+ {[%emt 0:01:43]} 37. Kf4 {[%emt 0:00:34]} Nc4 {[%emt 0:00:22]} 38.
Rb3 {[%emt 0:00:24]} f6 {[%emt 0:01:30]} 39. h3 {[%emt 0:00:16]} Nd2 {[%emt 0:
00:15]} 40. g4 {[%emt 0:00:57]} Re4+ {[%emt 0:00:10]} 0-1

[Event "23rd ETCC Women 2021"]
[Site "Catez"]
[Date "2021.11.13"]
[Round "2.20"]
[White "Fataliyeva, Ulviyya"]
[Black "Zaritovskaja, Margarita"]
[Result "1-0"]
[ECO "B50"]
[WhiteElo "2309"]
[BlackElo "2040"]
[Annotator "NA"]
[PlyCount "91"]
[EventDate "2021.11.08"]
[EventType "team-tourn"]
[EventCountry "SLO"]
[SourceTitle "playchess.com"]
[Source "ChessBase"]
[SourceQuality "1"]
[WhiteTeam "Azerbaijan"]
[BlackTeam "Sweden"]
[WhiteTeamCountry "AZE"]
[BlackTeamCountry "SWE"]
[TimeControl "40/5400+30:1800+30"]

1. e4 {[%emt 0:00:08]} c5 {[%emt 0:00:07]} 2. Nf3 {[%emt 0:00:06]} d6 {[%emt 0:
00:07]} 3. c3 {[%emt 0:00:06]} Nf6 {[%emt 0:01:03]} 4. Bd3 {[%emt 0:00:07]} g6
{[%emt 0:02:55]} 5. O-O {[%emt 0:00:15]} Bg7 {[%emt 0:00:06]} 6. Bc2 {[%emt 0:
00:07]} O-O {[%emt 0:01:33]} 7. d4 {[%emt 0:00:04]} cxd4 {[%emt 0:02:11]} 8.
cxd4 {[%emt 0:00:30]} Nc6 {[%emt 0:00:55]} 9. Nc3 {[%emt 0:01:59]} Bg4 {
[%emt 0:05:44]} 10. Be3 {[%emt 0:02:49]} Nd7 {[%emt 0:05:23]} 11. Qd2 {[%emt 0:
10:58]} Nb6 {[%emt 0:04:49]} 12. Bb3 {[%emt 0:00:46]} Na5 {[%emt 0:04:12]} 13.
Qd3 {[%emt 0:04:21]} Nxb3 {[%emt 0:09:05]} 14. axb3 {[%emt 0:00:05]} Bxf3 {
[%emt 0:00:57]} 15. gxf3 {[%emt 0:00:05]} Qd7 {[%emt 0:03:06]} 16. Kg2 {
[%emt 0:03:17]} f5 {[%emt 0:09:41]} 17. h3 {[%emt 0:00:22]} f4 {[%emt 0:05:53]}
18. Bd2 {[%emt 0:00:41]} d5 {[%emt 0:08:06]} 19. e5 {[%emt 0:03:56]} Rf5 {
[%emt 0:04:42]} 20. h4 {[%emt 0:05:37]} a6 {[%emt 0:13:24]} 21. Rh1 {[%emt 0:
01:10]} Raf8 {[%emt 0:02:13]} 22. Rag1 {[%emt 0:05:32]} e6 {[%emt 0:03:18]} 23.
Kf1 {[%emt 0:00:49]} Qc7 {[%emt 0:06:25]} 24. Ne2 {[%emt 0:01:14]} Nd7 {
[%emt 0:02:02]} 25. h5 {[%emt 0:06:51]} gxh5 {[%emt 0:02:11]} 26. Rh4 {[%emt 0:
00:16]} Qd8 {[%emt 0:01:53]} 27. Rxf4 {[%emt 0:01:24]} Kh8 {[%emt 0:01:00]} 28.
Rxf5 {[%emt 0:00:19]} Rxf5 {[%emt 0:00:36]} 29. Ng3 {[%emt 0:03:42]} Rf7 {
[%emt 0:00:27]} 30. Nxh5 {[%emt 0:00:21]} Qh4 {[%emt 0:00:40]} 31. Ng3 {
[%emt 0:00:35]} Nf8 {[%emt 0:00:39]} 32. Rh1 {[%emt 0:01:02]} Qe7 {[%emt 0:00:
19]} 33. f4 {[%emt 0:01:28]} Kg8 {[%emt 0:00:35]} 34. f5 {[%emt 0:01:13]} exf5
{[%emt 0:00:13]} 35. Nxf5 {[%emt 0:00:07]} Qe6 {[%emt 0:00:47]} 36. Nd6 {
[%emt 0:02:21]} Rc7 {[%emt 0:00:40]} 37. f4 {[%emt 0:00:15]} Qg4 {[%emt 0:00:
24]} 38. Rg1 {[%emt 0:02:27]} Qd1+ {[%emt 0:00:32]} 39. Kf2 {[%emt 0:00:06]}
Qc2 {[%emt 0:00:32]} 40. Qxc2 {[%emt 0:02:11]} Rxc2 {[%emt 0:00:04]} 41. Ke2 {
[%emt 0:31:05]} Ne6 {[%emt 0:03:04]} 42. Kd3 {[%emt 0:00:00]} Nxd4 {[%emt 0:02:
27]} 43. Be3 {[%emt 0:00:00]} Nf3 {[%emt 0:07:06]} 44. Kxc2 {[%emt 0:00:00]}
Nxg1 {[%emt 0:00:06]} 45. Bxg1 {[%emt 0:00:00]} b5 {[%emt 0:01:25]} 46. Kd3 {
[%emt 0:00:00]} 1-0

[Event "23rd ETCC Women 2021"]
[Site "Catez"]
[Date "2021.11.14"]
[Round "2.21"]
[White "Dolzhikova, Olga"]
[Black "Paehtz, Elisabeth"]
[Result "0-1"]
[ECO "C55"]
[WhiteElo "2187"]
[BlackElo "2485"]
[Annotator "ChessBase"]
[PlyCount "146"]
[EventDate "2021.11.08"]
[EventType "team-tourn"]
[EventCountry "SLO"]
[SourceTitle "playchess.com"]
[Source "ChessBase"]
[SourceQuality "1"]
[WhiteTeam "Norway"]
[BlackTeam "Germany"]
[WhiteTeamCountry "NOR"]
[BlackTeamCountry "GER"]
[TimeControl "40/5400+30:1800+30"]

1. e4 {[%emt 0:00:08]} e5 {[%emt 0:00:03]} 2. Nf3 {[%emt 0:00:05]} Nc6 {
[%emt 0:00:03]} 3. Bc4 {[%emt 0:00:04]} Nf6 {[%emt 0:00:04]} 4. d3 {[%emt 0:00:
11]} Be7 {[%emt 0:00:12]} 5. Bb3 {[%emt 0:01:35]} O-O {[%emt 0:00:34]} 6. Bg5 {
[%emt 0:03:22]} d6 {[%emt 0:00:59]} 7. c3 {[%emt 0:01:11]} h6 {[%emt 0:03:28]}
8. Bh4 {[%emt 0:00:59]} a5 {[%emt 0:19:32]} 9. Nbd2 {[%emt 0:05:58]} Nh5 {
[%emt 0:04:01]} 10. Bg3 {[%emt 0:04:55]} Bg4 {[%emt 0:00:25]} 11. Nf1 {[%emt 0:
08:33]} Nf4 {[%emt 0:09:44]} 12. Bxf4 {[%emt 0:18:10]} exf4 {[%emt 0:00:04]}
13. d4 {[%emt 0:03:08]} Qd7 {[%emt 0:03:24]} 14. N1d2 {[%emt 0:09:30]} Bh5 {
[%emt 0:00:25]} 15. O-O {[%emt 0:03:24]} Nd8 {[%emt 0:04:13]} 16. a4 {[%emt 0:
09:35]} Ne6 {[%emt 0:01:04]} 17. Qc2 {[%emt 0:00:57]} g5 {[%emt 0:00:34]} 18.
Bc4 {[%emt 0:05:44]} Kh8 {[%emt 0:12:13]} 19. Ne1 {[%emt 0:06:32]} f5 {[%emt 0:
04:51]} 20. f3 {[%emt 0:05:06]} c6 {[%emt 0:08:00]} 21. Bd3 {[%emt 0:03:51]}
fxe4 {[%emt 0:02:05]} 22. Bxe4 {[%emt 0:01:55]} Ng7 {[%emt 0:02:34]} 23. Nc4 {
[%emt 0:00:48]} Qc7 {[%emt 0:00:36]} 24. Bd3 {[%emt 0:00:56]} Bf7 {[%emt 0:00:
52]} 25. Rf2 {[%emt 0:01:22]} Bf6 {[%emt 0:00:50]} 26. Nd2 {[%emt 0:00:28]} d5
{[%emt 0:00:30]} 27. Bg6 {[%emt 0:01:18]} Rae8 {[%emt 0:05:19]} 28. Nf1 {
[%emt 0:01:55]} Re6 {[%emt 0:00:52]} 29. Bxf7 {[%emt 0:00:28]} Qxf7 {[%emt 0:
00:04]} 30. Nd3 {[%emt 0:01:05]} Rfe8 {[%emt 0:02:40]} 31. Nc5 {[%emt 0:00:47]}
R6e7 {[%emt 0:00:03]} 32. Rd1 {[%emt 0:00:25]} b6 {[%emt 0:02:53]} 33. Nd3 {
[%emt 0:00:05]} Nf5 {[%emt 0:01:58]} 34. Qb3 {[%emt 0:01:00]} Rb7 {[%emt 0:01:
05]} 35. Rfd2 {[%emt 0:00:32]} Kg7 {[%emt 0:01:44]} 36. Re1 {[%emt 0:00:34]}
Rxe1 {[%emt 0:03:24]} 37. Nxe1 {[%emt 0:00:03]} Qe6 {[%emt 0:02:21]} 38. Nd3 {
[%emt 0:00:18]} Nd6 {[%emt 0:00:04]} 39. Qc2 {[%emt 0:01:09]} Re7 {[%emt 0:00:
06]} 40. Rd1 {[%emt 0:01:19]} Qf5 {[%emt 0:02:13]} 41. Re1 {[%emt 0:03:20]}
Rxe1 {[%emt 0:07:43]} 42. Nxe1 {[%emt 0:01:34]} Qc8 {[%emt 0:00:38]} 43. Nd3 {
[%emt 0:01:38]} c5 {[%emt 0:01:19]} 44. dxc5 {[%emt 0:02:17]} bxc5 {[%emt 0:00:
04]} 45. Nf2 {[%emt 0:02:14]} c4 {[%emt 0:01:59]} 46. Ng4 {[%emt 0:08:37]} Bd8
{[%emt 0:04:36]} 47. Qf2 {[%emt 0:03:50]} Nf5 {[%emt 0:00:09]} 48. Qa7+ {
[%emt 0:00:11]} Qc7 {[%emt 0:02:01]} 49. Qxc7+ {[%emt 0:02:37]} Bxc7 {[%emt 0:
00:03]} 50. Nd2 {[%emt 0:01:12]} h5 {[%emt 0:05:45]} 51. Nf2 {[%emt 0:00:04]}
Ne3 {[%emt 0:02:47]} 52. b3 {[%emt 0:02:15]} Be5 {[%emt 0:01:29]} 53. bxc4 {
[%emt 0:03:49]} Bxc3 {[%emt 0:00:05]} 54. Nb3 {[%emt 0:02:36]} dxc4 {[%emt 0:
00:13]} 55. Nc1 {[%emt 0:01:08]} Bb2 {[%emt 0:03:48]} 56. Ne2 {[%emt 0:00:33]}
Nd5 {[%emt 0:02:33]} 57. Kf1 {[%emt 0:00:54]} Nb6 {[%emt 0:00:35]} 58. Ke1 {
[%emt 0:00:24]} Nxa4 {[%emt 0:00:07]} 59. Kd2 {[%emt 0:00:10]} Nc5 {[%emt 0:00:
31]} 60. Kc2 {[%emt 0:00:22]} Be5 {[%emt 0:00:11]} 61. Nc3 {[%emt 0:00:47]} Kg6
{[%emt 0:00:59]} 62. Nd5 {[%emt 0:00:40]} Bd4 {[%emt 0:00:42]} 63. Nd1 {
[%emt 0:00:12]} Nd3 {[%emt 0:00:14]} 64. Nc7 {[%emt 0:00:58]} Ne1+ {[%emt 0:01:
00]} 65. Kd2 {[%emt 0:00:08]} Nxg2 {[%emt 0:00:07]} 66. Nb5 {[%emt 0:00:50]}
Bc5 {[%emt 0:01:05]} 67. Kc3 {[%emt 0:01:00]} Ne3 {[%emt 0:00:07]} 68. Nb2 {
[%emt 0:00:00]} Bb4+ {[%emt 0:00:51]} 69. Kd4 {[%emt 0:00:00]} c3 {[%emt 0:02:
19]} 70. Nxc3 {[%emt 0:00:03]} Bxc3+ {[%emt 0:00:05]} 71. Kxc3 {[%emt 0:00:03]}
Nf1 {[%emt 0:00:03]} 72. h3 {[%emt 0:00:14]} Nh2 {[%emt 0:00:06]} 73. Nc4 {
[%emt 0:00:09]} Nxf3 {[%emt 0:00:10]} 0-1

[Event "23rd ETCC Women 2021"]
[Site "Catez"]
[Date "2021.11.13"]
[Round "2.22"]
[White "Heinemann, Josefine"]
[Black "Machlik, Monika"]
[Result "1-0"]
[ECO "B19"]
[WhiteElo "2336"]
[BlackElo "2096"]
[Annotator "NA"]
[PlyCount "109"]
[EventDate "2021.11.08"]
[EventType "team-tourn"]
[EventCountry "SLO"]
[SourceTitle "playchess.com"]
[Source "ChessBase"]
[SourceQuality "1"]
[WhiteTeam "Germany"]
[BlackTeam "Norway"]
[WhiteTeamCountry "GER"]
[BlackTeamCountry "NOR"]
[TimeControl "40/5400+30:1800+30"]

1. e4 {[%emt 0:00:03]} c6 {[%emt 0:00:05]} 2. d4 {[%emt 0:00:07]} d5 {[%emt 0:
00:03]} 3. Nd2 {[%emt 0:00:05]} dxe4 {[%emt 0:00:07]} 4. Nxe4 {[%emt 0:00:04]}
Bf5 {[%emt 0:00:06]} 5. Ng3 {[%emt 0:00:08]} Bg6 {[%emt 0:00:05]} 6. h4 {
[%emt 0:00:05]} h6 {[%emt 0:00:04]} 7. Nf3 {[%emt 0:00:06]} Nd7 {[%emt 0:00:06]
} 8. h5 {[%emt 0:00:29]} Bh7 {[%emt 0:00:04]} 9. Bd3 {[%emt 0:00:06]} Bxd3 {
[%emt 0:00:04]} 10. Qxd3 {[%emt 0:00:04]} e6 {[%emt 0:00:42]} 11. Bd2 {[%emt 0:
00:54]} Ngf6 {[%emt 0:00:23]} 12. O-O-O {[%emt 0:00:43]} Be7 {[%emt 0:00:25]}
13. Ne4 {[%emt 0:02:29]} Nxe4 {[%emt 0:00:25]} 14. Qxe4 {[%emt 0:00:05]} Nf6 {
[%emt 0:00:06]} 15. Qe2 {[%emt 0:01:52]} Qd5 {[%emt 0:00:19]} 16. Kb1 {[%emt 0:
02:44]} Qb5 {[%emt 0:00:55]} 17. c4 {[%emt 0:06:45]} Qf5+ {[%emt 0:00:45]} 18.
Ka1 {[%emt 0:00:25]} Rd8 {[%emt 0:14:42]} 19. Be3 {[%emt 0:06:44]} Ng4 {
[%emt 0:24:44]} 20. Bc1 {[%emt 0:06:40]} Qa5 {[%emt 0:09:20]} 21. Ne1 {[%emt 0:
06:18]} Nf6 {[%emt 0:00:40]} 22. g4 {[%emt 0:00:59]} b5 {[%emt 0:11:22]} 23. c5
{[%emt 0:08:22]} Nd5 {[%emt 0:05:21]} 24. f4 {[%emt 0:01:47]} Nb4 {[%emt 0:07:
09]} 25. a3 {[%emt 0:04:35]} Nd5 {[%emt 0:03:37]} 26. g5 {[%emt 0:03:23]} b4 {
[%emt 0:05:02]} 27. Rh3 {[%emt 0:02:57]} Qc7 {[%emt 0:01:56]} 28. g6 {[%emt 0:
07:35]} Bf6 {[%emt 0:01:43]} 29. f5 {[%emt 0:04:31]} Qe7 {[%emt 0:01:35]} 30.
fxe6 {[%emt 0:13:37]} fxe6 {[%emt 0:04:49]} 31. Nc2 {[%emt 0:00:00]} O-O {
[%emt 0:02:59]} 32. Nxb4 {[%emt 0:02:55]} Nxb4 {[%emt 0:00:18]} 33. axb4 {
[%emt 0:00:04]} Rxd4 {[%emt 0:02:49]} 34. Rxd4 {[%emt 0:00:22]} Bxd4 {[%emt 0:
00:01]} 35. Qc4 {[%emt 0:01:07]} Qf6 {[%emt 0:02:39]} 36. Rd3 {[%emt 0:06:34]}
Rd8 {[%emt 0:01:02]} 37. Ka2 {[%emt 0:01:02]} Kh8 {[%emt 0:00:59]} 38. Ra3 {
[%emt 0:01:42]} Qe7 {[%emt 0:00:53]} 39. Rf3 {[%emt 0:03:18]} Bf6 {[%emt 0:00:
31]} 40. Rd3 {[%emt 0:04:29]} Rd5 {[%emt 0:00:59]} 41. Rxd5 {[%emt 0:06:08]}
exd5 {[%emt 0:00:43]} 42. Qa6 {[%emt 0:00:20]} Qe6 {[%emt 0:09:54]} 43. b5 {
[%emt 0:06:27]} d4+ {[%emt 0:03:47]} 44. Ka1 {[%emt 0:00:24]} Bd8 {[%emt 0:04:
17]} 45. Qxc6 {[%emt 0:03:29]} Qe1 {[%emt 0:04:22]} 46. Kb1 {[%emt 0:01:37]}
Qe5 {[%emt 0:03:41]} 47. Qd7 {[%emt 0:01:13]} Qe4+ {[%emt 0:01:02]} 48. Ka2 {
[%emt 0:00:29]} Qe7 {[%emt 0:00:48]} 49. Qxe7 {[%emt 0:00:04]} Bxe7 {[%emt 0:
00:04]} 50. c6 {[%emt 0:00:04]} Bd6 {[%emt 0:00:04]} 51. Kb3 {[%emt 0:00:04]}
Kg8 {[%emt 0:00:06]} 52. Kc4 {[%emt 0:00:06]} Kf8 {[%emt 0:00:06]} 53. Kxd4 {
[%emt 0:00:11]} Ke7 {[%emt 0:00:04]} 54. Kd5 {[%emt 0:00:07]} Bc7 {[%emt 0:00:
08]} 55. Be3 {[%emt 0:00:07]} 1-0